[Event "Titled Tuesday Blitz November 30 2021"]
[White "Galchenko, Matvey"]
[Black "Radovic, Janko"]
[WhiteFideId "24175480"]
[BlackFideId "911518"]
[WhiteElo "2453"]
[BlackElo "2293"]
[Result "1-0"]
[Round "07"]
[TimeControl "180+1"]
[Date "2021.11.30"]
[WhiteClock "0:00:27"]
[BlackClock "0:00:03"]

1. f4 {[%clk 0:02:58]}  d5 {[%clk 0:02:39]} 2. Nf3 {[%clk 0:02:57]}  c5 {[%clk 0:02:39]} 3. g3 {[%clk 0:02:57]}  Nc6 {[%clk 0:02:39]} 4. Bg2 {[%clk 0:02:56]}  g6 {[%clk 0:02:40]} 5. O-O {[%clk 0:02:57]}  Bg7 {[%clk 0:02:40]} 6. d3 {[%clk 0:02:58]}  Nf6 {[%clk 0:02:41]} 7. Nc3 {[%clk 0:02:58]}  O-O {[%clk 0:02:41]} 8. e4 {[%clk 0:02:59]}  dxe4 {[%clk 0:02:40]} 9. dxe4 {[%clk 0:03:00]}  Nd4 {[%clk 0:02:41]} 10. e5 {[%clk 0:03:00]}  Ng4 {[%clk 0:02:33]} 11. h3 {[%clk 0:02:57]}  Nh6 {[%clk 0:02:33]} 12. Ne4 {[%clk 0:02:55]}  Nxf3+ {[%clk 0:02:16]} 13. Qxf3 {[%clk 0:02:56]}  Nf5 {[%clk 0:02:15]} 14. c3 {[%clk 0:02:56]}  Bd7 {[%clk 0:02:11]} 15. Qf2 {[%clk 0:02:41]}  Bc6 {[%clk 0:01:48]} 16. g4 {[%clk 0:02:36]}  Nh6 {[%clk 0:01:48]} 17. Nxc5 {[%clk 0:02:26]}  Bxg2 {[%clk 0:01:41]} 18. Qxg2 {[%clk 0:02:27]}  b6 {[%clk 0:01:23]} 19. Ne4 {[%clk 0:02:22]}  f6 {[%clk 0:01:19]} 20. exf6 {[%clk 0:02:11]}  exf6 {[%clk 0:01:18]} 21. f5 {[%clk 0:02:11]}  Nf7 {[%clk 0:01:12]} 22. Bf4 {[%clk 0:02:07]}  gxf5 {[%clk 0:01:07]} 23. gxf5 {[%clk 0:02:08]}  Kh8 {[%clk 0:01:07]} 24. Rad1 {[%clk 0:02:04]}  Qc8 {[%clk 0:01:04]} 25. Ng3 {[%clk 0:02:03]}  Rg8 {[%clk 0:01:02]} 26. Kh1 {[%clk 0:02:01]}  Bh6 {[%clk 0:01:01]} 27. Bxh6 {[%clk 0:01:57]}  Nxh6 {[%clk 0:01:01]} 28. Qf3 {[%clk 0:01:55]}  Rg5 {[%clk 0:00:59]} 29. Rd6 {[%clk 0:01:48]}  Qf8 {[%clk 0:00:55]} 30. Rxf6 {[%clk 0:01:40]}  Qxf6 {[%clk 0:00:53]} 31. Qxa8+ {[%clk 0:01:40]}  Rg8 {[%clk 0:00:53]} 32. Qf3 {[%clk 0:01:35]}  Qh4 {[%clk 0:00:38]} 33. Ne4 {[%clk 0:01:34]}  Re8 {[%clk 0:00:33]} 34. Nf2 {[%clk 0:01:29]}  Nf7 {[%clk 0:00:22]} 35. f6 {[%clk 0:01:19]}  Rg8 {[%clk 0:00:18]} 36. Rd1 {[%clk 0:00:59]}  Rg3 {[%clk 0:00:13]} 37. Qf5 {[%clk 0:00:54]}  Rg5 {[%clk 0:00:13]} 38. Qf3 {[%clk 0:00:43]}  Rg3 {[%clk 0:00:13]} 39. Qc6 {[%clk 0:00:36]}  Rg8 {[%clk 0:00:09]} 40. Rg1 {[%clk 0:00:28]}  Qxf2 {[%clk 0:00:03]} 41. Rxg8+ {[%clk 0:00:27]} 1-0


[Site "https://www.chess.com"]

[Event "Titled Tuesday Blitz November 30 2021"]
[White "Gontcharov, Vladislav"]
[Black "Vokhidov, Shamsiddin"]
[WhiteFideId "4123492"]
[BlackFideId "14204223"]
[WhiteElo "2503"]
[BlackElo "2616"]
[Result "1-0"]
[Round "07"]
[TimeControl "180+1"]
[Date "2021.11.30"]
[WhiteClock "0:00:05"]
[BlackClock "0:01:20"]

1. e4 {[%clk 0:02:55]}  c5 {[%clk 0:03:00]} 2. Nf3 {[%clk 0:02:54]}  d6 {[%clk 0:03:00]} 3. d4 {[%clk 0:02:54]}  cxd4 {[%clk 0:03:01]} 4. Qxd4 {[%clk 0:02:54]}  Nf6 {[%clk 0:03:01]} 5. c4 {[%clk 0:02:53]}  Nc6 {[%clk 0:03:00]} 6. Qe3 {[%clk 0:02:52]}  g6 {[%clk 0:03:01]} 7. h3 {[%clk 0:02:50]}  Bg7 {[%clk 0:03:01]} 8. Nc3 {[%clk 0:02:50]}  O-O {[%clk 0:03:00]} 9. Bd3 {[%clk 0:02:50]}  Qb6 {[%clk 0:02:59]} 10. Qxb6 {[%clk 0:02:43]}  axb6 {[%clk 0:03:00]} 11. O-O {[%clk 0:02:40]}  Nd7 {[%clk 0:03:00]} 12. Nd5 {[%clk 0:02:38]}  e6 {[%clk 0:02:59]} 13. Nc7 {[%clk 0:02:38]}  Rb8 {[%clk 0:02:55]} 14. Nb5 {[%clk 0:02:31]}  Nc5 {[%clk 0:02:53]} 15. Rd1 {[%clk 0:02:30]}  d5 {[%clk 0:02:49]} 16. exd5 {[%clk 0:02:18]}  exd5 {[%clk 0:02:50]} 17. cxd5 {[%clk 0:02:16]}  Nb4 {[%clk 0:02:49]} 18. Bc4 {[%clk 0:01:58]}  Bd7 {[%clk 0:02:48]} 19. Bf4 {[%clk 0:01:44]}  Rbc8 {[%clk 0:02:47]} 20. Nd6 {[%clk 0:01:35]}  Ra8 {[%clk 0:02:46]} 21. a3 {[%clk 0:01:34]}  Nba6 {[%clk 0:02:42]} 22. Rab1 {[%clk 0:01:30]}  h6 {[%clk 0:02:35]} 23. b3 {[%clk 0:01:14]}  g5 {[%clk 0:02:33]} 24. Be5 {[%clk 0:01:11]}  Nc7 {[%clk 0:02:26]} 25. Bxg7 {[%clk 0:01:06]}  Kxg7 {[%clk 0:02:27]} 26. a4 {[%clk 0:01:05]}  Rad8 {[%clk 0:02:25]} 27. Nd4 {[%clk 0:00:47]}  Kg6 {[%clk 0:02:23]} 28. g4 {[%clk 0:00:41]}  Bxa4 {[%clk 0:02:21]} 29. Nxb7 {[%clk 0:00:35]}  Nxb7 {[%clk 0:02:18]} 30. bxa4 {[%clk 0:00:34]}  Nxd5 {[%clk 0:02:10]} 31. Nf5 {[%clk 0:00:34]}  Nf6 {[%clk 0:02:02]} 32. Rxd8 {[%clk 0:00:31]}  Rxd8 {[%clk 0:02:03]} 33. Rxb6 {[%clk 0:00:26]}  Nc5 {[%clk 0:02:04]} 34. a5 {[%clk 0:00:23]}  Rd1+ {[%clk 0:02:03]} 35. Kg2 {[%clk 0:00:22]}  Ra1 {[%clk 0:02:04]} 36. a6 {[%clk 0:00:21]}  Ra4 {[%clk 0:02:02]} 37. Bb5 {[%clk 0:00:19]}  Ra5 {[%clk 0:02:02]} 38. Bf1 {[%clk 0:00:15]}  Ra2 {[%clk 0:01:59]} 39. Rc6 {[%clk 0:00:15]}  Ne4 {[%clk 0:01:58]} 40. Bc4 {[%clk 0:00:09]}  Rxf2+ {[%clk 0:01:56]} 41. Kg1 {[%clk 0:00:09]}  Rf3 {[%clk 0:01:52]} 42. a7 {[%clk 0:00:09]}  Ra3 {[%clk 0:01:52]} 43. Ra6 {[%clk 0:00:09]}  Rc3 {[%clk 0:01:35]} 44. a8=Q {[%clk 0:00:08]}  Rxc4 {[%clk 0:01:34]} 45. Qh8 {[%clk 0:00:07]}  Rc1+ {[%clk 0:01:32]} 46. Kg2 {[%clk 0:00:07]}  Rc2+ {[%clk 0:01:33]} 47. Kf1 {[%clk 0:00:08]}  Rf2+ {[%clk 0:01:21]} 48. Ke1 {[%clk 0:00:08]}  Rxf5 {[%clk 0:01:22]} 49. gxf5+ {[%clk 0:00:08]}  Kxf5 {[%clk 0:01:23]} 50. Qxh6 {[%clk 0:00:07]}  Nd5 {[%clk 0:01:22]} 51. Ra5 {[%clk 0:00:06]}  Nf6 {[%clk 0:01:22]} 52. Qg7 {[%clk 0:00:05]}  Ke6 {[%clk 0:01:21]} 53. Qxg5 {[%clk 0:00:05]}  Kd6 {[%clk 0:01:20]} 54. Qf5 {[%clk 0:00:05]}  Kc6 {[%clk 0:01:18]} 55. h4 {[%clk 0:00:05]}  Kd6 {[%clk 0:01:18]} 56. h5 {[%clk 0:00:05]}  Ke7 {[%clk 0:01:17]} 57. Rxd5 {[%clk 0:00:04]}  Ne8 {[%clk 0:01:18]} 58. Re5+ {[%clk 0:00:03]}  Kf8 {[%clk 0:01:18]} 59. Rxe8+ {[%clk 0:00:04]}  Kxe8 {[%clk 0:01:18]} 60. Qf6 {[%clk 0:00:04]}  Kf8 {[%clk 0:01:19]} 61. h6 {[%clk 0:00:05]}  Kg8 {[%clk 0:01:20]} 62. Qg7# {[%clk 0:00:05]} 1-0


[Site "https://www.chess.com"]

[Event "Titled Tuesday Blitz November 30 2021"]
[White "Kollars, Dmitrij"]
[Black "Bologan, Victor"]
[WhiteFideId "12909572"]
[BlackFideId "13900048"]
[WhiteElo "2584"]
[BlackElo "2472"]
[Result "1-0"]
[Round "07"]
[TimeControl "180+1"]
[Date "2021.11.30"]
[WhiteClock "0:01:38"]
[BlackClock "0:00:14"]

1. e4 {[%clk 0:03:00]}  e5 {[%clk 0:02:58]} 2. Nf3 {[%clk 0:03:00]}  Nc6 {[%clk 0:02:58]} 3. Bb5 {[%clk 0:02:56]}  a6 {[%clk 0:02:57]} 4. Ba4 {[%clk 0:02:56]}  Nf6 {[%clk 0:02:57]} 5. O-O {[%clk 0:02:55]}  Nxe4 {[%clk 0:02:57]} 6. d4 {[%clk 0:02:52]}  b5 {[%clk 0:02:57]} 7. Bb3 {[%clk 0:02:51]}  d5 {[%clk 0:02:57]} 8. dxe5 {[%clk 0:02:51]}  Be6 {[%clk 0:02:57]} 9. Qe2 {[%clk 0:02:51]}  Be7 {[%clk 0:02:48]} 10. Rd1 {[%clk 0:02:50]}  O-O {[%clk 0:02:45]} 11. c4 {[%clk 0:02:50]}  bxc4 {[%clk 0:02:45]} 12. Bxc4 {[%clk 0:02:50]}  Bc5 {[%clk 0:02:44]} 13. Be3 {[%clk 0:02:50]}  Bxe3 {[%clk 0:02:41]} 14. Qxe3 {[%clk 0:02:51]}  Qb8 {[%clk 0:01:41]} 15. Bb3 {[%clk 0:02:51]}  Na5 {[%clk 0:01:39]} 16. Nbd2 {[%clk 0:02:44]}  Nxd2 {[%clk 0:01:35]} 17. Rxd2 {[%clk 0:02:32]}  Nxb3 {[%clk 0:01:16]} 18. axb3 {[%clk 0:02:33]}  h6 {[%clk 0:00:47]} 19. Rc1 {[%clk 0:02:28]}  a5 {[%clk 0:00:46]} 20. Nd4 {[%clk 0:02:22]}  Ra6 {[%clk 0:00:35]} 21. Rdc2 {[%clk 0:02:16]}  a4 {[%clk 0:00:24]} 22. bxa4 {[%clk 0:02:10]}  Rxa4 {[%clk 0:00:24]} 23. b3 {[%clk 0:02:08]}  Ra3 {[%clk 0:00:16]} 24. Rxc7 {[%clk 0:02:05]}  Qb4 {[%clk 0:00:14]} 25. Nc2 {[%clk 0:01:38]} 1-0


[Site "https://www.chess.com"]

[Event "Titled Tuesday Blitz November 30 2021"]
[White "Le, Tuan Minh"]
[Black "Rasulov, Vugar"]
[WhiteFideId "12401153"]
[BlackFideId "13402390"]
[WhiteElo "2450"]
[BlackElo "2560"]
[Result "1-0"]
[Round "07"]
[TimeControl "180+1"]
[Date "2021.11.30"]
[WhiteClock "0:00:18"]
[BlackClock "0:00:30"]

1. d4 {[%clk 0:03:00]}  d5 {[%clk 0:03:00]} 2. Nf3 {[%clk 0:03:00]}  c5 {[%clk 0:03:00]} 3. c3 {[%clk 0:03:00]}  Nc6 {[%clk 0:02:58]} 4. Bf4 {[%clk 0:03:00]}  cxd4 {[%clk 0:02:54]} 5. cxd4 {[%clk 0:03:00]}  Nf6 {[%clk 0:02:54]} 6. Nc3 {[%clk 0:03:00]}  Bf5 {[%clk 0:02:54]} 7. Qb3 {[%clk 0:03:00]}  Na5 {[%clk 0:02:53]} 8. Qa4+ {[%clk 0:03:00]}  Bd7 {[%clk 0:02:54]} 9. Qc2 {[%clk 0:03:01]}  e6 {[%clk 0:02:54]} 10. e3 {[%clk 0:03:01]}  Be7 {[%clk 0:02:53]} 11. Bd3 {[%clk 0:03:02]}  O-O {[%clk 0:02:53]} 12. O-O {[%clk 0:03:01]}  Rc8 {[%clk 0:02:53]} 13. Ne5 {[%clk 0:03:01]}  a6 {[%clk 0:02:49]} 14. Qe2 {[%clk 0:03:00]}  Be8 {[%clk 0:02:42]} 15. Rac1 {[%clk 0:03:00]}  Nd7 {[%clk 0:02:42]} 16. Nxd7 {[%clk 0:02:53]}  Bxd7 {[%clk 0:02:43]} 17. Qh5 {[%clk 0:02:53]}  f5 {[%clk 0:02:41]} 18. Ne2 {[%clk 0:02:46]}  Nc4 {[%clk 0:02:37]} 19. b3 {[%clk 0:02:42]}  Nd6 {[%clk 0:02:36]} 20. Rxc8 {[%clk 0:02:33]}  Bxc8 {[%clk 0:02:36]} 21. Rc1 {[%clk 0:02:34]}  Qa5 {[%clk 0:02:33]} 22. Bb1 {[%clk 0:01:46]}  Bd7 {[%clk 0:02:28]} 23. g4 {[%clk 0:01:40]}  g6 {[%clk 0:02:18]} 24. Qh3 {[%clk 0:01:33]}  Qd2 {[%clk 0:02:14]} 25. Rc2 {[%clk 0:01:15]}  Qa5 {[%clk 0:02:00]} 26. gxf5 {[%clk 0:01:14]}  Nxf5 {[%clk 0:01:53]} 27. Rc7 {[%clk 0:01:11]}  Rd8 {[%clk 0:01:33]} 28. Bxf5 {[%clk 0:01:09]}  exf5 {[%clk 0:01:33]} 29. Qf3 {[%clk 0:01:03]}  Qe1+ {[%clk 0:01:23]} 30. Kg2 {[%clk 0:01:02]}  Bb5 {[%clk 0:01:24]} 31. Ng3 {[%clk 0:00:58]}  Bh4 {[%clk 0:01:16]} 32. Kh3 {[%clk 0:00:42]}  Bf6 {[%clk 0:01:10]} 33. Be5 {[%clk 0:00:38]}  Bf1+ {[%clk 0:00:59]} 34. Nxf1 {[%clk 0:00:38]}  Qxf1+ {[%clk 0:01:00]} 35. Qg2 {[%clk 0:00:39]}  Qe2 {[%clk 0:01:01]} 36. Bxf6 {[%clk 0:00:36]}  Qh5+ {[%clk 0:00:59]} 37. Bh4 {[%clk 0:00:36]}  h6 {[%clk 0:00:52]} 38. f4 {[%clk 0:00:13]}  Re8 {[%clk 0:00:52]} 39. Qxd5+ {[%clk 0:00:09]}  Kh8 {[%clk 0:00:52]} 40. Rh7+ {[%clk 0:00:09]}  Kxh7 {[%clk 0:00:51]} 41. Qf7+ {[%clk 0:00:09]}  Kh8 {[%clk 0:00:52]} 42. Qxe8+ {[%clk 0:00:10]}  Kg7 {[%clk 0:00:53]} 43. Qe7+ {[%clk 0:00:10]}  Kg8 {[%clk 0:00:53]} 44. Qd8+ {[%clk 0:00:11]}  Kg7 {[%clk 0:00:52]} 45. Qc7+ {[%clk 0:00:11]}  Kg8 {[%clk 0:00:52]} 46. Qb8+ {[%clk 0:00:12]}  Kg7 {[%clk 0:00:52]} 47. Qxb7+ {[%clk 0:00:13]}  Kg8 {[%clk 0:00:52]} 48. Qc8+ {[%clk 0:00:13]}  Kg7 {[%clk 0:00:53]} 49. Qd7+ {[%clk 0:00:13]}  Kg8 {[%clk 0:00:53]} 50. Qc8+ {[%clk 0:00:12]}  Kg7 {[%clk 0:00:53]} 51. Qb7+ {[%clk 0:00:13]}  Kg8 {[%clk 0:00:54]} 52. Qg2 {[%clk 0:00:14]}  Kf7 {[%clk 0:00:51]} 53. d5 {[%clk 0:00:12]}  Qd1 {[%clk 0:00:47]} 54. d6 {[%clk 0:00:12]}  Qxd6 {[%clk 0:00:27]} 55. Qb7+ {[%clk 0:00:10]}  Kg8 {[%clk 0:00:27]} 56. Qc8+ {[%clk 0:00:10]}  Kf7 {[%clk 0:00:28]} 57. Qc4+ {[%clk 0:00:11]}  Kf8 {[%clk 0:00:25]} 58. Qd4 {[%clk 0:00:10]}  Qe6 {[%clk 0:00:25]} 59. Qf6+ {[%clk 0:00:10]}  Qxf6 {[%clk 0:00:21]} 60. Bxf6 {[%clk 0:00:11]}  Kf7 {[%clk 0:00:22]} 61. Bd4 {[%clk 0:00:11]}  g5 {[%clk 0:00:22]} 62. Kg3 {[%clk 0:00:12]}  Ke6 {[%clk 0:00:22]} 63. Kf3 {[%clk 0:00:12]}  Kd5 {[%clk 0:00:23]} 64. fxg5 {[%clk 0:00:11]}  hxg5 {[%clk 0:00:24]} 65. Bf6 {[%clk 0:00:11]}  g4+ {[%clk 0:00:21]} 66. Kf4 {[%clk 0:00:12]}  Ke6 {[%clk 0:00:22]} 67. Bh4 {[%clk 0:00:12]}  a5 {[%clk 0:00:23]} 68. a4 {[%clk 0:00:12]}  g3 {[%clk 0:00:23]} 69. Bxg3 {[%clk 0:00:12]}  Kd7 {[%clk 0:00:24]} 70. h4 {[%clk 0:00:13]}  Kc6 {[%clk 0:00:25]} 71. Kxf5 {[%clk 0:00:14]}  Kc5 {[%clk 0:00:26]} 72. h5 {[%clk 0:00:14]}  Kb4 {[%clk 0:00:26]} 73. h6 {[%clk 0:00:15]}  Kxb3 {[%clk 0:00:27]} 74. h7 {[%clk 0:00:16]}  Kc2 {[%clk 0:00:28]} 75. h8=Q {[%clk 0:00:16]}  Kd1 {[%clk 0:00:29]} 76. Qd4+ {[%clk 0:00:17]}  Ke2 {[%clk 0:00:30]} 77. e4 {[%clk 0:00:17]}  Kf1 {[%clk 0:00:30]} 78. Qf2# {[%clk 0:00:18]} 1-0


[Site "https://www.chess.com"]

[Event "Titled Tuesday Blitz November 30 2021"]
[White "Lysyj, Igor"]
[Black "Demchenko, Anton"]
[WhiteFideId "4150120"]
[BlackFideId "4160258"]
[WhiteElo "2611"]
[BlackElo "2583"]
[Result "1-0"]
[Round "07"]
[TimeControl "180+1"]
[Date "2021.11.30"]
[WhiteClock "0:00:13"]
[BlackClock "0:00:01"]

1. d4 {[%clk 0:03:00]}  d5 {[%clk 0:03:00]} 2. c4 {[%clk 0:02:59]}  dxc4 {[%clk 0:03:01]} 3. e3 {[%clk 0:02:59]}  Nf6 {[%clk 0:03:00]} 4. Bxc4 {[%clk 0:02:57]}  e6 {[%clk 0:03:00]} 5. Nf3 {[%clk 0:02:56]}  a6 {[%clk 0:03:01]} 6. O-O {[%clk 0:02:56]}  Be7 {[%clk 0:03:02]} 7. b3 {[%clk 0:02:50]}  O-O {[%clk 0:03:02]} 8. Bb2 {[%clk 0:02:50]}  Nbd7 {[%clk 0:03:02]} 9. Nbd2 {[%clk 0:02:42]}  b6 {[%clk 0:03:03]} 10. e4 {[%clk 0:02:40]}  Bb7 {[%clk 0:03:01]} 11. Qe2 {[%clk 0:02:40]}  c5 {[%clk 0:02:58]} 12. Rfd1 {[%clk 0:02:38]}  cxd4 {[%clk 0:02:47]} 13. Nxd4 {[%clk 0:02:38]}  Qb8 {[%clk 0:02:47]} 14. N4f3 {[%clk 0:02:28]}  b5 {[%clk 0:02:42]} 15. Bd3 {[%clk 0:02:27]}  Nc5 {[%clk 0:02:34]} 16. Bc2 {[%clk 0:02:27]}  Rd8 {[%clk 0:02:27]} 17. Rac1 {[%clk 0:02:22]}  Qf4 {[%clk 0:02:05]} 18. Be5 {[%clk 0:02:17]}  Qg4 {[%clk 0:02:06]} 19. h3 {[%clk 0:02:15]}  Qh5 {[%clk 0:02:04]} 20. Bb1 {[%clk 0:02:04]}  Rac8 {[%clk 0:02:01]} 21. Qe3 {[%clk 0:01:54]}  b4 {[%clk 0:01:12]} 22. Bd4 {[%clk 0:01:44]}  Nfd7 {[%clk 0:01:08]} 23. e5 {[%clk 0:01:40]}  a5 {[%clk 0:00:58]} 24. Nc4 {[%clk 0:01:35]}  Bxf3 {[%clk 0:00:54]} 25. Qxf3 {[%clk 0:01:35]}  Qxf3 {[%clk 0:00:55]} 26. gxf3 {[%clk 0:01:35]}  a4 {[%clk 0:00:48]} 27. Na5 {[%clk 0:01:23]}  axb3 {[%clk 0:00:44]} 28. axb3 {[%clk 0:01:23]}  g6 {[%clk 0:00:44]} 29. f4 {[%clk 0:01:20]}  Bf8 {[%clk 0:00:39]} 30. Be3 {[%clk 0:01:12]}  Ra8 {[%clk 0:00:34]} 31. Nc6 {[%clk 0:01:11]}  Rdc8 {[%clk 0:00:35]} 32. Nxb4 {[%clk 0:01:07]}  Nxb3 {[%clk 0:00:30]} 33. Rxc8 {[%clk 0:01:05]}  Rxc8 {[%clk 0:00:31]} 34. Rxd7 {[%clk 0:01:01]}  Bxb4 {[%clk 0:00:31]} 35. Rb7 {[%clk 0:00:57]}  Rd8 {[%clk 0:00:16]} 36. Be4 {[%clk 0:00:33]}  Nd4 {[%clk 0:00:01]} 37. Rxb4 {[%clk 0:00:31]}  Ne2+ {[%clk 0:00:01]} 38. Kf1 {[%clk 0:00:30]}  Nc3 {[%clk 0:00:02]} 39. Rc4 {[%clk 0:00:28]}  Nxe4 {[%clk 0:00:02]} 40. Rxe4 {[%clk 0:00:28]}  h5 {[%clk 0:00:02]} 41. Kg2 {[%clk 0:00:28]}  Rc8 {[%clk 0:00:03]} 42. Rd4 {[%clk 0:00:28]}  Rc2 {[%clk 0:00:03]} 43. Rd8+ {[%clk 0:00:26]}  Kg7 {[%clk 0:00:04]} 44. Bb6 {[%clk 0:00:21]}  Rc6 {[%clk 0:00:03]} 45. Ba5 {[%clk 0:00:19]}  Rc5 {[%clk 0:00:03]} 46. Bb4 {[%clk 0:00:19]}  Rc4 {[%clk 0:00:04]} 47. Be7 {[%clk 0:00:18]}  g5 {[%clk 0:00:03]} 48. Bf6+ {[%clk 0:00:17]}  Kg6 {[%clk 0:00:03]} 49. Rg8+ {[%clk 0:00:17]}  Kf5 {[%clk 0:00:04]} 50. Rxg5+ {[%clk 0:00:16]}  Kxf4 {[%clk 0:00:04]} 51. Rxh5 {[%clk 0:00:16]}  Rc3 {[%clk 0:00:03]} 52. Rh7 {[%clk 0:00:16]}  Rc7 {[%clk 0:00:02]} 53. h4 {[%clk 0:00:16]}  Kf5 {[%clk 0:00:02]} 54. Rg7 {[%clk 0:00:16]}  Rc4 {[%clk 0:00:02]} 55. h5 {[%clk 0:00:14]}  Rc3 {[%clk 0:00:01]} 56. h6 {[%clk 0:00:13]} 1-0


[Site "https://www.chess.com"]

[Event "Titled Tuesday Blitz November 30 2021"]
[White "Mitrabha, Guha"]
[Black "Jobava, Baadur"]
[WhiteFideId "5057000"]
[BlackFideId "13601520"]
[WhiteElo "2334"]
[BlackElo "2731"]
[Result "0-1"]
[Round "07"]
[TimeControl "180+1"]
[Date "2021.11.30"]
[WhiteClock "0:00:10"]
[BlackClock "0:00:43"]

1. d4 {[%clk 0:03:00]}  d5 {[%clk 0:02:59]} 2. c4 {[%clk 0:02:59]}  c6 {[%clk 0:03:00]} 3. Nf3 {[%clk 0:02:59]}  Nf6 {[%clk 0:03:01]} 4. g3 {[%clk 0:02:59]}  Bf5 {[%clk 0:03:00]} 5. Nc3 {[%clk 0:02:58]}  e6 {[%clk 0:03:00]} 6. Qb3 {[%clk 0:02:58]}  Qc8 {[%clk 0:03:00]} 7. Nh4 {[%clk 0:02:53]}  g6 {[%clk 0:02:53]} 8. f3 {[%clk 0:02:45]}  h5 {[%clk 0:02:54]} 9. Bg2 {[%clk 0:02:44]}  c5 {[%clk 0:02:25]} 10. dxc5 {[%clk 0:02:30]}  dxc4 {[%clk 0:02:21]} 11. Qxc4 {[%clk 0:02:27]}  Nbd7 {[%clk 0:02:10]} 12. e4 {[%clk 0:02:22]}  Bxc5 {[%clk 0:02:10]} 13. Qe2 {[%clk 0:02:17]}  O-O {[%clk 0:02:10]} 14. Bh6 {[%clk 0:02:07]}  Re8 {[%clk 0:02:08]} 15. O-O-O {[%clk 0:02:04]}  Bb4 {[%clk 0:02:04]} 16. Qc2 {[%clk 0:02:01]}  Qc5 {[%clk 0:01:50]} 17. exf5 {[%clk 0:01:59]}  exf5 {[%clk 0:01:51]} 18. Kb1 {[%clk 0:01:46]}  Rac8 {[%clk 0:01:50]} 19. Qb3 {[%clk 0:01:29]}  Nb6 {[%clk 0:01:24]} 20. Bg5 {[%clk 0:01:16]}  Bxc3 {[%clk 0:01:16]} 21. Qxc3 {[%clk 0:01:12]}  Qxc3 {[%clk 0:01:17]} 22. bxc3 {[%clk 0:01:13]}  Nfd5 {[%clk 0:01:18]} 23. Bd2 {[%clk 0:01:11]}  Na4 {[%clk 0:01:10]} 24. Ka1 {[%clk 0:00:57]}  Ndxc3 {[%clk 0:01:09]} 25. Rc1 {[%clk 0:00:52]}  Re2 {[%clk 0:01:06]} 26. Rc2 {[%clk 0:00:49]}  Rd8 {[%clk 0:01:04]} 27. Rxc3 {[%clk 0:00:46]}  Rdxd2 {[%clk 0:01:03]} 28. Ra3 {[%clk 0:00:46]}  b5 {[%clk 0:00:59]} 29. f4 {[%clk 0:00:37]}  Rxg2 {[%clk 0:00:57]} 30. Nxg2 {[%clk 0:00:38]}  Rxg2 {[%clk 0:00:57]} 31. h4 {[%clk 0:00:36]}  Kg7 {[%clk 0:00:57]} 32. Rc1 {[%clk 0:00:35]}  a6 {[%clk 0:00:56]} 33. Rd3 {[%clk 0:00:35]}  b4 {[%clk 0:00:54]} 34. a3 {[%clk 0:00:33]}  Nc3 {[%clk 0:00:54]} 35. Rcxc3 {[%clk 0:00:30]}  bxc3 {[%clk 0:00:54]} 36. Rxc3 {[%clk 0:00:31]}  a5 {[%clk 0:00:55]} 37. Kb1 {[%clk 0:00:30]}  a4 {[%clk 0:00:55]} 38. Ka1 {[%clk 0:00:30]}  Kf6 {[%clk 0:00:54]} 39. Re3 {[%clk 0:00:30]}  Kg7 {[%clk 0:00:51]} 40. Kb1 {[%clk 0:00:30]}  f6 {[%clk 0:00:50]} 41. Rc3 {[%clk 0:00:27]}  g5 {[%clk 0:00:50]} 42. Rc7+ {[%clk 0:00:20]}  Kg6 {[%clk 0:00:50]} 43. hxg5 {[%clk 0:00:20]}  fxg5 {[%clk 0:00:48]} 44. Rc6+ {[%clk 0:00:21]}  Kg7 {[%clk 0:00:48]} 45. Rc7+ {[%clk 0:00:21]}  Kf6 {[%clk 0:00:49]} 46. Rc6+ {[%clk 0:00:22]}  Kf7 {[%clk 0:00:48]} 47. Rc7+ {[%clk 0:00:22]}  Ke6 {[%clk 0:00:49]} 48. Rc6+ {[%clk 0:00:17]}  Kd5 {[%clk 0:00:49]} 49. Rh6 {[%clk 0:00:10]}  g4 {[%clk 0:00:43]} 50. Rxh5 {[%clk 0:00:10]}  Ke4 {[%clk 0:00:43]} 0-1


[Site "https://www.chess.com"]

[Event "Titled Tuesday Blitz November 30 2021"]
[White "Nakamura, Hikaru"]
[Black "Zhigalko, Sergei"]
[WhiteFideId "2016192"]
[BlackFideId "13502956"]
[WhiteElo "2884"]
[BlackElo "2662"]
[Result "0-1"]
[Round "07"]
[TimeControl "180+1"]
[Date "2021.11.30"]
[WhiteClock "0:00:03"]
[BlackClock "0:00:02"]

1. d4 {[%clk 0:03:00]}  Nf6 {[%clk 0:03:00]} 2. Nf3 {[%clk 0:03:00]}  e6 {[%clk 0:03:00]} 3. c4 {[%clk 0:03:01]}  b6 {[%clk 0:03:01]} 4. g3 {[%clk 0:03:00]}  Ba6 {[%clk 0:03:01]} 5. b3 {[%clk 0:02:58]}  Bb4+ {[%clk 0:03:01]} 6. Bd2 {[%clk 0:02:57]}  Be7 {[%clk 0:03:01]} 7. Qc2 {[%clk 0:02:57]}  O-O {[%clk 0:03:00]} 8. e4 {[%clk 0:02:51]}  d5 {[%clk 0:03:00]} 9. cxd5 {[%clk 0:02:51]}  Bxf1 {[%clk 0:03:00]} 10. Kxf1 {[%clk 0:02:51]}  exd5 {[%clk 0:03:01]} 11. e5 {[%clk 0:02:51]}  Ne4 {[%clk 0:03:02]} 12. Nc3 {[%clk 0:02:52]}  Nxc3 {[%clk 0:02:57]} 13. Bxc3 {[%clk 0:02:44]}  Qd7 {[%clk 0:02:56]} 14. Kg2 {[%clk 0:02:44]}  c5 {[%clk 0:02:51]} 15. Rad1 {[%clk 0:02:43]}  Nc6 {[%clk 0:02:45]} 16. Rhe1 {[%clk 0:02:41]}  Qe6 {[%clk 0:02:43]} 17. Qe2 {[%clk 0:02:34]}  Rac8 {[%clk 0:02:36]} 18. Rc1 {[%clk 0:02:24]}  h6 {[%clk 0:02:31]} 19. Bb2 {[%clk 0:02:23]}  Rfd8 {[%clk 0:02:29]} 20. h4 {[%clk 0:02:23]}  Na5 {[%clk 0:01:44]} 21. Bc3 {[%clk 0:02:15]}  Nc6 {[%clk 0:01:44]} 22. Bb2 {[%clk 0:01:47]}  Na5 {[%clk 0:01:43]} 23. dxc5 {[%clk 0:01:41]}  bxc5 {[%clk 0:01:43]} 24. Red1 {[%clk 0:01:41]}  d4 {[%clk 0:01:38]} 25. Nd2 {[%clk 0:01:37]}  Nc6 {[%clk 0:00:48]} 26. Nc4 {[%clk 0:01:34]}  Nb4 {[%clk 0:00:49]} 27. a3 {[%clk 0:01:32]}  Nd5 {[%clk 0:00:49]} 28. Qf3 {[%clk 0:01:29]}  Rb8 {[%clk 0:00:49]} 29. Rd3 {[%clk 0:01:28]}  Rb5 {[%clk 0:00:46]} 30. h5 {[%clk 0:01:17]}  Rdb8 {[%clk 0:00:45]} 31. Re1 {[%clk 0:01:17]}  Bg5 {[%clk 0:00:40]} 32. a4 {[%clk 0:01:00]}  R5b7 {[%clk 0:00:40]} 33. Ba3 {[%clk 0:01:01]}  Be7 {[%clk 0:00:39]} 34. Nd2 {[%clk 0:00:55]}  Nc3 {[%clk 0:00:27]} 35. Bc1 {[%clk 0:00:43]}  Bg5 {[%clk 0:00:26]} 36. Ne4 {[%clk 0:00:43]}  Nxe4 {[%clk 0:00:25]} 37. Qxe4 {[%clk 0:00:42]}  Rxb3 {[%clk 0:00:23]} 38. Rxb3 {[%clk 0:00:32]}  Qxb3 {[%clk 0:00:18]} 39. f4 {[%clk 0:00:30]}  Be7 {[%clk 0:00:18]} 40. f5 {[%clk 0:00:31]}  Qb7 {[%clk 0:00:08]} 41. Kf3 {[%clk 0:00:23]}  c4 {[%clk 0:00:09]} 42. Qxb7 {[%clk 0:00:17]}  Rxb7 {[%clk 0:00:10]} 43. Re4 {[%clk 0:00:17]}  Rd7 {[%clk 0:00:08]} 44. e6 {[%clk 0:00:17]}  fxe6 {[%clk 0:00:09]} 45. fxe6 {[%clk 0:00:18]}  Rd5 {[%clk 0:00:09]} 46. Rf4 {[%clk 0:00:10]}  Bg5 {[%clk 0:00:07]} 47. Re4 {[%clk 0:00:09]}  Kf8 {[%clk 0:00:05]} 48. Ba3+ {[%clk 0:00:09]}  Ke8 {[%clk 0:00:05]} 49. Ke2 {[%clk 0:00:07]}  d3+ {[%clk 0:00:04]} 50. Ke1 {[%clk 0:00:07]}  c3 {[%clk 0:00:03]} 51. Rc4 {[%clk 0:00:08]}  c2 {[%clk 0:00:02]} 52. e7 {[%clk 0:00:03]}  d2+ {[%clk 0:00:02]} 53. Kf2 {[%clk 0:00:03]}  Bxe7 {[%clk 0:00:02]} 0-1


[Site "https://www.chess.com"]